fUSD/lending_fUSD_20250520
["ID","MTS","AMOUNT","RATE_DAILY","PERIOD"]
[361715986,1747718622088,-460.2,0.00042484,120]
[361715987,1747718622123,-420.0,0.00042484,120]
[361715988,1747718622158,-1149.17,0.00042484,120]
[361715989,1747718622196,-420.0,0.00042484,120]
[361715990,1747718622232,-674.19,0.00042484,120]
[361715991,1747718622268,-550.14,0.00042484,120]
[361715992,1747718622305,-460.2,0.00042484,120]
[361715993,1747718622341,-1149.17,0.00042484,120]
[361715994,1747718622378,-420.0,0.00042484,120]
[361715995,1747718622414,-420.0,0.00042484,120]
[361715996,1747718622450,-550.14,0.00042484,120]
[361715997,1747718622485,-674.19,0.00042484,120]
[361715998,1747718622523,-1149.17,0.00042484,120]
[361715999,1747718622562,-320.0,0.00042484,120]
[361716000,1747718622600,-420.0,0.00042484,120]
[361716001,1747718622638,-460.2,0.00042484,120]
[361716002,1747718622676,-550.14,0.00042484,120]
[361716003,1747718622728,-674.19,0.00042484,120]
[361716004,1747718622767,-1149.17,0.00042484,120]
[361716005,1747718622805,-420.0,0.00042484,120]
[361716006,1747718622842,-460.2,0.00042484,120]
[361716007,1747718622879,-550.14,0.00042484,120]
[361716008,1747718622918,-674.19,0.00042484,120]
[361716009,1747718623272,-1149.17,0.00042484,120]
[361716010,1747718623330,-420.0,0.00042484,120]
[361716011,1747718623387,-460.2,0.00042484,120]
[361716012,1747718623424,-550.14,0.00042484,120]
[361716013,1747718623463,-674.19,0.00042484,120]
[361716014,1747718623502,-1149.17,0.00042484,120]
[361716015,1747718623538,-550.14,0.00042484,120]
[361716016,1747718623574,-460.2,0.00042484,120]
[361716017,1747718623611,-420.0,0.00042484,120]
[361716018,1747718623648,-674.19,0.00042484,120]
[361716019,1747718623688,-420.0,0.00042484,120]
[361716020,1747718623729,-1149.17,0.00042484,120]
[361716021,1747718623771,-550.14,0.00042484,120]
[361716022,1747718623815,-460.2,0.00042484,120]
[361716023,1747718623854,-420.0,0.00042484,120]
[361716024,1747718623909,-674.19,0.00042484,120]
[361716025,1747718623946,-420.0,0.00042484,120]
[361716026,1747718623983,-1149.17,0.00042484,120]
[361716027,1747718624019,-550.14,0.00042484,120]
[361716028,1747718624055,-420.0,0.00042484,120]
[361716029,1747718624091,-460.2,0.00042484,120]
[361716030,1747718624128,-674.19,0.00042484,120]
[361716031,1747718624164,-1149.17,0.00042484,120]
[361716032,1747718624201,-420.0,0.00042484,120]
[361716033,1747718624238,-550.14,0.00042484,120]
[361716034,1747718624275,-420.0,0.00042484,120]
[361716035,1747718624312,-460.2,0.00042484,120]
[361716036,1747718624349,-420.0,0.00042484,120]
[361716037,1747718624389,-674.38012772,0.00042484,120]
[361716038,1747718624430,-420.0,0.00042484,120]
[361716039,1747718624470,-1149.17,0.00042484,120]
[361716040,1747718624509,-1366.22,0.00042484,120]
[361716041,1747718624546,-550.14,0.00042484,120]
[361716042,1747718624593,-420.0,0.00042484,120]
[361716043,1747718624636,-420.0,0.00042484,120]
[361716044,1747718624675,-460.2,0.00042484,120]
[361716045,1747718624713,-420.0,0.00042484,120]
[361716046,1747718624754,-165.63676787,0.00042484,120]
[361716047,1747718624793,-400.0,0.00042484,120]
[361716048,1747718624831,-1149.17,0.00042484,120]
[361716049,1747718624868,-420.0,0.00042484,120]
[361716050,1747718624905,-420.0,0.00042484,120]
[361716051,1747718624941,-1366.22,0.00042484,120]
[361716052,1747718624979,-550.14,0.00042484,120]
[361716053,1747718625015,-420.0,0.00042484,120]
[361716054,1747718625052,-460.2,0.00042484,120]
[361716055,1747718625090,-420.0,0.00042484,120]
[361716056,1747718625128,-420.0,0.00042484,120]
[361716057,1747718625165,-420.0,0.00042484,120]
[361716058,1747718625202,-1366.22,0.00042484,120]
[361716059,1747718625238,-420.0,0.00042484,120]
[361716060,1747718625273,-1046.50715181,0.00042484,120]
[361716062,1747718643250,10000.0,0.00025,60]
[361716064,1747718681804,10000.0,0.0002,30]
[361716066,1747718766691,2613.77158803,8e-05,2]
[361716071,1747718821064,3030.86,0.00025,60]
[361716077,1747718873549,1499.28037318,0.0001,2]
[361716078,1747718879255,150.0,0.00011117,7]
[361716105,1747719031702,-700.0,0.000114,4]
[361716108,1747719031714,-387.08115685,0.000115,2]
[361716109,1747719031723,-1400.0,0.000115,4]
[361716110,1747719031734,-2100.0,0.000116,4]
[361716111,1747719031744,-250.0,0.0001164,2]
[361716112,1747719031754,-200.0,0.0001164,2]
[361716113,1747719031764,-1200.0,0.00011699,2]
[361716114,1747719031774,-2800.0,0.000117,4]
[361716115,1747719031784,-300.0,0.00011779,2]
[361716116,1747719031794,-1100.0,0.0001178,2]
[361716117,1747719031804,-300.0,0.00011794,2]
[361716118,1747719031813,-3028.59514484,0.00011795,2]
[361716119,1747719031824,-3500.0,0.000118,4]
[361716120,1747719031834,-250.0,0.00011815,2]
[361716121,1747719031845,-458.06,0.00011865,2]
[361716122,1747719031855,-29602.2904,0.000119,2]
[361716123,1747719031865,-376.6224,0.000119,2]
[361716124,1747719031875,-700.0,0.000119,4]
[361716125,1747719031885,-842.2821,0.000119,2]
[361716126,1747719031894,-157.10271811,0.000119,2]
[361716127,1747719031904,-1044.40123311,0.000119,2]
[361716128,1747719031914,-1044.40123311,0.000119,2]
[361716129,1747719031924,-2019.1967335,0.0001195,2]
[361716130,1747719031933,-1657.70180395,0.0001195,2]
[361716131,1747719031943,-501.28329626,0.00011973,2]
[361716132,1747719031953,-500.48558467,0.00011973,2]
[361716133,1747719031963,-501.8266559,0.00011973,2]
[361716134,1747719031972,-503.28600546,0.00011973,2]
[361716135,1747719031982,-2235.761,0.00011993,2]
[361716136,1747719031991,-174.52,0.00011999,2]
[361716138,1747719032000,-26995.2101087,0.00012,2]
[361716140,1747719032012,-12403.80373137,0.00012,2]
[361716143,1747719032024,-400.0,0.00012,2]
[361716145,1747719032039,-810.00831848,0.00012,2]
[361716146,1747719032050,-1445.11699576,0.00012,2]
[361716149,1747719032075,-4779.77659591,0.00012,2]
[361716151,1747719032086,-919.3999996,0.00012,2]
[361716154,1747719032097,-18754.64378845,0.00012,2]
[361716156,1747719032109,-1797.16000669,0.00012,2]
[361716158,1747719032124,-461.8661638,0.00012,2]
[361716168,1747719037698,-477.46,0.0001199,2]
[361716169,1747719037883,-78.51276507,0.0001199,2]
[361716170,1747719037894,-555.97276507,0.0001199,2]
[361716171,1747719037904,-555.97276507,0.0001199,2]
[361716172,1747719037913,-408125.94154999,0.00012,2]
[361716182,1747719039930,-419363.97273489,0.00012,2]
[361716183,1747719039941,-121674.50155825,0.00012,2]
[361716184,1747719040102,-890.1881715,0.00012,2]
[361716190,1747719042843,-10705.59749076,0.00012,2]
[361716191,1747719042901,-1285.7,0.00012,2]
[361716193,1747719045660,-216.43098418,0.000119,2]
[361716194,1747719045670,-919.04694933,0.00012,2]
[361716209,1747719153633,490.43,9.759e-05,2]
[361716216,1747719191588,1000.0,0.00027,120]
[361716217,1747719198900,1000.0,0.00027,120]
[361716233,1747719423522,-259.97467031,0.00011238,2]
[361716234,1747719425672,-221.96250135,0.00011238,2]
[361716235,1747719429838,-270.19773624,0.00011238,2]
[361716236,1747719432607,-165.39,0.00011238,2]
[361716237,1747719434750,-187.876677,0.00011238,2]
[361716238,1747719436552,-288.12574727,0.00011238,2]
[361716239,1747719440831,-108.81266783,0.00011238,2]
[361716241,1747719560110,207.89,0.00011058,2]
[361716242,1747719610952,160.1,0.00011017,2]
[361716244,1747719656347,271.5,0.00025,60]
[361716254,1747719787484,150.052011,0.000273,120]
[361716255,1747719788628,150.052011,0.000273,120]
[361716256,1747719789664,150.052011,0.000273,120]
[361716257,1747719790783,150.052011,0.000273,120]
[361716258,1747719791982,150.052011,0.000273,120]
[361716262,1747719815654,150.052011,0.000273,120]
[361716263,1747719906766,162.0,0.00010936,2]
[361716264,1747719906980,162.0,0.00010947,2]
[361716265,1747719907187,162.0,0.00010958,2]
[361716266,1747719907415,162.0,0.00010969,2]
[361716267,1747719907616,162.0,0.0001098,2]
[361716268,1747719908010,162.0,0.00010991,2]
[361716272,1747720071873,150.0,0.00010936,7]
[361716273,1747720084808,-196.10817455,0.0001126,2]
[361716274,1747720114323,-200.0,0.0001126,2]
[361716275,1747720117573,-162.06697652,0.0001126,2]
[361716278,1747720142851,200.0,0.0002,60]
[361716285,1747720230166,465.9,9.033e-05,2]
[361716288,1747720231816,-441.82484893,0.0001126,2]
[361716289,1747720232170,-250.0,0.00011261,2]
[361716290,1747720232186,-200.0,0.00011263,2]
[361716291,1747720232196,-465.9,0.00011297,2]
[361716292,1747720232206,-171.85,0.00011307,2]
[361716293,1747720232216,-166.85,0.0001139,2]
[361716294,1747720232226,-1200.0,0.00011452,2]
[361716295,1747720232236,-6551.26053455,0.00011453,2]
[361716296,1747720232246,-300.0,0.00011647,2]
[361716297,1747720232256,-300.0,0.00011647,2]
[361716298,1747720232266,-1051.91,0.0001169,2]
[361716299,1747720232275,-806.45118564,0.00011772,2]
[361716300,1747720232285,-2869.4416,0.000118,2]
[361716301,1747720232295,-153.04225253,0.00011873,2]
[361716302,1747720232304,-500.0,0.00011873,2]
[361716303,1747720232317,-500.0,0.00011873,2]
[361716304,1747720232327,-502.39777938,0.00011873,2]
[361716305,1747720232337,-500.0,0.00011873,2]
[361716306,1747720232347,-500.50526181,0.00011873,2]
[361716307,1747720232356,-502.7761219,0.00011873,2]
[361716308,1747720232366,-501.21010304,0.00011873,2]
[361716309,1747720232376,-500.0,0.00011873,2]
[361716310,1747720232385,-500.0,0.00011873,2]
[361716311,1747720232395,-227.0,0.00011878,2]
[361716312,1747720232404,-164.76,0.0001189,2]
[361716313,1747720232414,-164.76,0.0001189,2]
[361716314,1747720232423,-164.76,0.0001189,2]
[361716315,1747720232433,-519.135164,0.00011899,2]
[361716316,1747720232443,-519.135164,0.00011899,2]
[361716317,1747720232452,-519.135164,0.00011899,2]
[361716318,1747720232462,-519.135164,0.00011899,2]
[361716319,1747720232472,-519.135164,0.00011899,2]
[361716320,1747720232482,-519.135164,0.00011899,2]
[361716321,1747720232491,-519.135164,0.00011899,2]
[361716322,1747720232501,-519.135164,0.00011899,2]
[361716323,1747720232511,-519.135164,0.00011899,2]
[361716324,1747720232522,-519.135164,0.00011899,2]
[361716325,1747720232531,-519.135164,0.00011899,2]
[361716326,1747720232542,-519.135164,0.00011899,2]
[361716327,1747720232552,-519.135164,0.00011899,2]
[361716329,1747720232563,-519.135164,0.00011899,2]
[361716331,1747720232573,-519.135164,0.00011899,2]
[361716333,1747720232582,-519.135164,0.00011899,2]
[361716335,1747720232592,-519.135164,0.00011899,2]
[361716337,1747720232602,-519.135164,0.00011899,2]
[361716339,1747720232611,-519.135164,0.00011899,2]
[361716341,1747720232621,-519.135164,0.00011899,2]
[361716343,1747720232630,-519.135164,0.00011899,2]
[361716345,1747720232640,-519.135164,0.00011899,2]
[361716347,1747720232650,-519.135164,0.00011899,2]
[361716349,1747720232660,-519.135164,0.00011899,2]
[361716351,1747720232669,-519.135164,0.00011899,2]
[361716353,1747720232679,-519.135164,0.00011899,2]
[361716355,1747720232688,-519.135164,0.00011899,2]
[361716357,1747720232697,-519.135164,0.00011899,2]
[361716359,1747720232707,-519.135164,0.00011899,2]
[361716361,1747720232717,-519.135164,0.00011899,2]
[361716363,1747720232728,-519.135164,0.00011899,2]
[361716365,1747720232737,-519.135164,0.00011899,2]
[361716366,1747720232747,-519.135164,0.00011899,2]
[361716368,1747720232757,-519.135164,0.00011899,2]
[361716371,1747720232767,-519.135164,0.00011899,2]
[361716373,1747720232778,-519.135164,0.00011899,2]
[361716375,1747720232788,-519.135164,0.00011899,2]
[361716377,1747720232798,-519.135164,0.00011899,2]
[361716379,1747720232810,-519.135164,0.00011899,2]
[361716381,1747720232821,-519.135164,0.00011899,2]
[361716383,1747720232831,-519.135164,0.00011899,2]
[361716385,1747720232840,-519.135164,0.00011899,2]
[361716386,1747720232851,-519.135164,0.00011899,2]
[361716389,1747720232861,-519.135164,0.00011899,2]
[361716391,1747720232871,-519.135164,0.00011899,2]
[361716393,1747720232882,-519.135164,0.00011899,2]
[361716394,1747720232893,-519.135164,0.00011899,2]
[361716396,1747720232903,-513.94381236,0.00011899,2]
[361716397,1747720232913,-513.94381236,0.00011899,2]
[361716399,1747720232923,-513.94381236,0.00011899,2]
[361716401,1747720232936,-513.94381236,0.00011899,2]
[361716403,1747720232946,-513.94381236,0.00011899,2]
[361716405,1747720232956,-513.94381236,0.00011899,2]
[361716407,1747720232966,-513.94381236,0.00011899,2]
[361716409,1747720232976,-513.94381236,0.00011899,2]
[361716411,1747720232985,-513.94381236,0.00011899,2]
[361716413,1747720232995,-513.94381236,0.00011899,2]
[361716415,1747720233005,-513.94381236,0.00011899,2]
[361716417,1747720233015,-513.94381236,0.00011899,2]
[361716419,1747720233025,-513.94381236,0.00011899,2]
[361716421,1747720233036,-513.94381236,0.00011899,2]
[361716423,1747720233047,-513.94381236,0.00011899,2]
[361716425,1747720233057,-513.94381236,0.00011899,2]
[361716427,1747720233071,-513.94381236,0.00011899,2]
[361716429,1747720233081,-513.94381236,0.00011899,2]
[361716431,1747720233092,-513.94381236,0.00011899,2]
[361716433,1747720233102,-513.94381236,0.00011899,2]
[361716435,1747720233112,-513.94381236,0.00011899,2]
[361716437,1747720233123,-513.94381236,0.00011899,2]
[361716439,1747720233134,-513.94381236,0.00011899,2]
[361716441,1747720233145,-513.94381236,0.00011899,2]
[361716443,1747720233157,-513.94381236,0.00011899,2]
[361716445,1747720233168,-513.94381236,0.00011899,2]
[361716447,1747720233178,-513.94381236,0.00011899,2]
[361716449,1747720233190,-513.94381236,0.00011899,2]
[361716450,1747720233200,-513.94381236,0.00011899,2]
[361716452,1747720233211,-513.94381236,0.00011899,2]
[361716454,1747720233222,-513.94381236,0.00011899,2]
[361716456,1747720233232,-519.65429915,0.00011899,2]
[361716458,1747720233243,-519.65429915,0.00011899,2]
[361716460,1747720233253,-519.65429915,0.00011899,2]
[361716462,1747720233264,-519.65429915,0.00011899,2]
[361716464,1747720233274,-519.65429915,0.00011899,2]
[361716466,1747720233283,-519.65429915,0.00011899,2]
[361716467,1747720233293,-519.65429915,0.00011899,2]
[361716468,1747720233302,-519.65429915,0.00011899,2]
[361716469,1747720233315,-519.6542991,0.00011899,2]
[361716470,1747720233325,-150.0,0.00011899,2]
[361716471,1747720233335,-261.27747531,0.00011899,2]
[361716472,1747720233344,-500.0,0.00011899,2]
[361716473,1747720233354,-500.0,0.00011899,2]
[361716474,1747720233364,-500.0,0.00011899,2]
[361716475,1747720233374,-1000.0,0.000119,2]
[361716476,1747720233383,-516.0806,0.000119,2]
[361716477,1747720233393,-159930.1062,0.000119,2]
[361716478,1747720233403,-205.92408086,0.000119,2]
[361716479,1747720233413,-335.59896687,0.000119,2]
[361716480,1747720233423,-453.11,0.000119,2]
[361716481,1747720233433,-290.47931684,0.000119,2]
[361716482,1747720233443,-325.47,0.000119,2]
[361716483,1747720233453,-5000.0,0.000119,2]
[361716484,1747720233463,-453.11,0.000119,2]
[361716485,1747720233473,-304.4,0.000119,2]
[361716486,1747720233482,-10286.65022249,0.000119,2]
[361716487,1747720233493,-150.3,0.000119,2]
[361716488,1747720233502,-906.22,0.000119,2]
[361716489,1747720233512,-453.11,0.000119,2]
[361716490,1747720233522,-150.3,0.000119,2]
[361716491,1747720233532,-453.11,0.000119,2]
[361716492,1747720233542,-150.3,0.000119,2]
[361716493,1747720233552,-447.14650369,0.000119,2]
[361716494,1747720233564,-883.27,0.000119,2]
[361716495,1747720233574,-150.3,0.000119,2]
[361716496,1747720233584,-2629.40241134,0.000119,2]
[361716497,1747720233594,-150.3,0.000119,2]
[361716498,1747720233603,-352.85,0.000119,2]
[361716499,1747720233613,-805.14,0.000119,2]
[361716500,1747720233623,-200.00844346,0.00011926,2]
[361716501,1747720233633,-500.0,0.00011926,2]
[361716502,1747720233642,-500.0,0.00011926,2]
[361716503,1747720233653,-500.0,0.00011926,2]
[361716504,1747720233663,-500.0,0.00011954,2]
[361716505,1747720233673,-468.2377355,0.00011954,2]
[361716506,1747720233682,-500.0,0.00011954,2]
[361716507,1747720233693,-500.0,0.00011981,2]
[361716508,1747720233702,-500.0,0.00011981,2]
[361716509,1747720233712,-164.76,0.0001199,2]
[361716510,1747720233721,-164.76,0.0001199,2]
[361716511,1747720233731,-164.76,0.0001199,2]
[361716512,1747720233740,-164.76,0.0001199,2]
[361716513,1747720233749,-164.76,0.0001199,2]
[361716514,1747720233759,-164.76,0.0001199,2]
[361716515,1747720233769,-164.76,0.0001199,2]
[361716516,1747720233779,-195.0,0.0001199,2]
[361716517,1747720233790,-194.06,0.0001199,2]
[361716518,1747720233799,-2261.87,0.00011993,2]
[361716519,1747720233813,-172.829,0.00011999,2]
[361716520,1747720233823,-262.57327894,0.00012,2]
[361716521,1747720233833,-209401.01485636,0.00012,2]
[361716522,1747720234445,-598.88591085,0.00012,2]
[361716523,1747720234457,-5720.000016,0.00012,2]
[361716524,1747720234469,-49927.74681234,0.00012,2]
[361716525,1747720234481,-7719.29338366,0.00012,2]
[361716526,1747720234493,-425.18333004,0.00012,2]
[361716527,1747720234516,-16483.66364517,0.00012,2]
[361716530,1747720237887,-715.16096669,0.00012,2]
[361716531,1747720237944,-33802.34841758,0.00012,2]
[361716532,1747720238054,-3660.76925576,0.00012,2]
[361716533,1747720238177,-7670.69161602,0.00012,2]
[361716537,1747720239918,-172320.0550867,0.00012,2]
[361716538,1747720239931,-4112817.7627782,0.00012,2]
[361716539,1747720239948,-669.96918845,0.00012,2]
[361716540,1747720240142,-1282.0,0.00012,2]
[361716541,1747720240392,-219.61060392,0.00012,2]
[361716542,1747720240404,-999.89332,0.00012,2]
[361716543,1747720240415,-8025.54,0.00012,2]
[361716544,1747720240442,-673.39147392,0.00012,2]
[361716559,1747720243370,137537.893,0.0002,60]
[361716586,1747720245826,-399.12642841,0.00011453,2]
[361716587,1747720245836,-7070.6885787,0.00012,2]
[361716588,1747720245848,-19904.84880599,0.00012,2]
[361716589,1747720245882,-1761942.53141349,0.00012,2]
[361716590,1747720245895,-26292.44407486,0.00012,2]
[361716591,1747720245905,-46992.52658386,0.00012,2]
[361716592,1747720245916,-2291.00974343,0.00012,2]
[361716593,1747720245940,-280.45,0.00012,2]
[361716594,1747720245952,-1000.0,0.00012,2]
[361716595,1747720245964,-645.75968916,0.00012,2]
[361716596,1747720246007,-16330.3829492,0.00012,2]
[361716597,1747720246019,-11928.71536598,0.00012,2]
[361716598,1747720246031,-16680.57486744,0.00012,2]
[361716599,1747720246043,-857.30599154,0.00012,2]
[361716600,1747720246119,-402.80313002,0.00012,2]
[361716606,1747720667403,82982.34973574,0.00011365,5]
[361716607,1747720667433,53295.66447105,0.00011365,5]
[361716609,1747720869092,-174.05558515,0.00011238,2]
[361716610,1747720871349,-198.78036584,0.00011238,2]
[361716611,1747720874084,-127.16404901,0.00011238,2]
[361716623,1747721237785,150.0,0.00011007,7]
[361716631,1747721326065,463.53,9.097e-05,2]
[361716655,1747721431987,-157.06958621,0.00011289,2]
[361716658,1747721432003,-200.0,0.00011291,2]
[361716659,1747721432023,-250.0,0.00011293,2]
[361716660,1747721432039,-200.0,0.00011299,2]
[361716661,1747721432057,-207.89,0.00011304,2]
[361716662,1747721432069,-167.53,0.00011309,2]
[361716663,1747721432082,-463.53,0.00011361,2]
[361716664,1747721432100,-1000.0,0.00011365,2]
[361716665,1747721432115,-207.4,0.00011389,2]
[361716666,1747721432129,-300.0,0.00011394,2]
[361716667,1747721432141,-300.0,0.00011394,2]
[361716668,1747721432156,-1200.0,0.00011394,2]
[361716669,1747721432171,-195.0,0.00011395,2]
[361716670,1747721432183,-20542.66549422,0.00011396,2]
[361716671,1747721432201,-315.94,0.00011396,2]
[361716672,1747721432238,-70.09450578,0.00011396,2]
[361716673,1747721432253,-236.41,0.0001142,2]
[361716674,1747721432268,-253.25,0.00011491,2]
[361716675,1747721432283,-46.26772551,0.000119,2]
[361716676,1747721432307,-455.22808034,0.000119,2]
[361716677,1747721432325,-800.0,0.000119,2]
[361716678,1747721432349,-389.87779415,0.000119,2]
[361716679,1747721432363,-205.92408086,0.000119,2]
[361716680,1747721432377,-150.04855099,0.000119,2]
[361716681,1747721432392,-500.0,0.00011973,2]
[361716682,1747721432405,-170.99891018,0.00011973,2]
[361716685,1747721432419,-500.0,0.00011973,2]
[361716687,1747721432433,-507.28647287,0.00011973,2]
[361716689,1747721432447,-4045.0,0.00011974,2]
[361716693,1747721432473,-838.0,0.00011974,2]
[361716696,1747721432495,-3469.05972031,0.00011974,2]
[361716699,1747721432517,-3355.94027969,0.00011974,2]
[361716701,1747721432535,-151.0,0.00011993,2]
[361716702,1747721432552,-151.0,0.00011993,2]
[361716703,1747721432571,-155.0,0.00011993,2]
[361716706,1747721432588,-400.0,0.00011993,2]
[361716708,1747721432604,-668.65185757,0.00011993,2]
[361716711,1747721432620,-668.65185757,0.00011993,2]
[361716714,1747721432637,-2253.066,0.00011993,2]
[361716716,1747721432653,-171.983,0.00011998,2]
[361716719,1747721432669,-209.01665543,0.00011999,2]
[361716721,1747721432685,-174.6562721,0.00011999,2]
[361716724,1747721432700,-500.0,0.00011999,2]
[361716727,1747721432716,-500.0,0.00011999,2]
[361716729,1747721432731,-500.0,0.00011999,2]
[361716732,1747721432746,-500.0,0.00011999,2]
[361716734,1747721432760,-500.0,0.00011999,2]
[361716737,1747721432775,-500.0,0.00011999,2]
[361716739,1747721432791,-500.0,0.00011999,2]
[361716742,1747721432806,-500.0,0.00011999,2]
[361716744,1747721432821,-500.0,0.00011999,2]
[361716747,1747721432835,-500.0,0.00011999,2]
[361716750,1747721432856,-538.31372062,0.00011999,2]
[361716753,1747721432876,-500.0,0.00011999,2]
[361716756,1747721432894,-500.0,0.00011999,2]
[361716759,1747721432913,-500.0,0.00011999,2]
[361716762,1747721432930,-500.0,0.00011999,2]
[361716765,1747721432948,-500.0,0.00011999,2]
[361716767,1747721432963,-500.0,0.00011999,2]
[361716770,1747721432980,-500.0,0.00011999,2]
[361716773,1747721432997,-500.0,0.00011999,2]
[361716776,1747721433013,-500.0,0.00011999,2]
[361716778,1747721433028,-500.0,0.00011999,2]
[361716781,1747721433046,-500.0,0.00011999,2]
[361716784,1747721433062,-500.0,0.00011999,2]
[361716786,1747721433078,-500.0,0.00011999,2]
[361716789,1747721433094,-500.0,0.00011999,2]
[361716792,1747721433110,-500.0,0.00011999,2]
[361716794,1747721433125,-500.0,0.00011999,2]
[361716797,1747721433142,-500.0,0.00011999,2]
[361716799,1747721433156,-500.0,0.00011999,2]
[361716802,1747721433172,-500.0,0.00011999,2]
[361716805,1747721433188,-500.0,0.00011999,2]
[361716807,1747721433203,-500.0,0.00011999,2]
[361716810,1747721433221,-500.0,0.00011999,2]
[361716812,1747721433236,-350.0,0.00011999,2]
[361716815,1747721433258,-202.0,0.00011999,2]
[361716818,1747721433278,-81522.24922081,0.00012,2]
[361716821,1747721433300,-425.41581372,0.00012,2]
[361716824,1747721433321,-950.01782196,0.00012,2]
[361716847,1747721437966,-643.74549932,0.000119,2]
[361716848,1747721437980,-154.0,0.00011974,2]
[361716849,1747721437994,-114731.12149235,0.00012,2]
[361716850,1747721438010,-423.85537705,0.00012,2]
[361716851,1747721438076,-1060.3,0.00012,2]
[361716852,1747721438092,-869.86847398,0.00012,2]
[361716853,1747721438107,-2229.31,0.00012,2]
[361716854,1747721438136,-449.33178084,0.00012,2]
[361716855,1747721438194,-8487.84997,0.00012,2]
[361716856,1747721438211,-10444.07302733,0.00012,2]
[361716857,1747721438228,-452.64,0.00012,2]
[361716858,1747721438244,-476.22,0.00012,2]
[361716859,1747721438259,-680.42059505,0.00012,2]
[361716881,1747721440137,-5944.0,0.00011974,2]
[361716882,1747721440150,-3477862.09338703,0.00012,2]
[361716883,1747721440164,-66099.08899446,0.00012,2]
[361716884,1747721440177,-250.0,0.00012,2]
[361716885,1747721440191,-250.0,0.00012,2]
[361716886,1747721440203,-250.0,0.00012,2]
[361716887,1747721440216,-250.0,0.00012,2]
[361716888,1747721440231,-250.0,0.00012,2]
[361716889,1747721440244,-250.0,0.00012,2]
[361716890,1747721440256,-250.0,0.00012,2]
[361716891,1747721440268,-327.8,0.00012,2]
[361716892,1747721440280,-20000.0,0.00012,2]
[361716893,1747721440293,-169.11390466,0.00012,2]
[361716894,1747721440307,-1340.0,0.00012,2]
[361716895,1747721440321,-500.0,0.00012026,2]
[361716896,1747721440333,-689.0,0.00012026,2]
[361716897,1747721440344,-799.0,0.0001205,2]
[361716898,1747721440356,-500.0,0.00012053,2]
[361716899,1747721440984,-689.0,0.00012053,2]
[361716900,1747721441023,-500.0,0.00012081,2]
[361716901,1747721441066,-689.0,0.00012081,2]
[361716902,1747721441079,-453.11,0.000121,2]
[361716903,1747721441089,-458.69,0.000121,2]
[361716904,1747721441099,-300.6,0.000121,2]
[361716905,1747721441109,-150.3,0.000121,2]
[361716906,1747721441118,-170.07,0.000121,2]
[361716907,1747721441128,-1753.0,0.000121,2]
[361716909,1747721441137,-500.0,0.00012108,2]
[361716911,1747721441147,-689.0,0.00012108,2]
[361716913,1747721441156,-500.0,0.00012136,2]
[361716915,1747721441166,-689.0,0.00012136,2]
[361716917,1747721441175,-500.0,0.00012163,2]
[361716918,1747721441185,-689.0,0.00012163,2]
[361716920,1747721441194,-500.0,0.0001219,2]
[361716923,1747721441204,-689.0,0.0001219,2]
[361716924,1747721441214,-500.0,0.00012218,2]